fUSD/lending_fUSD_20250113
["ID","MTS","AMOUNT","RATE_DAILY","PERIOD"]
[348721633,1736751041503,-501.67505584,9.899e-05,2]
[348721636,1736751041517,-500.0,9.899e-05,2]
[348721638,1736751041529,-501.0174001,9.899e-05,2]
[348721640,1736751041540,-503.65266573,9.899e-05,2]
[348721642,1736751041550,-500.0,9.899e-05,2]
[348721645,1736751041561,-500.0,9.899e-05,2]
[348721647,1736751041572,-500.0,9.899e-05,2]
[348721649,1736751041583,-500.0,9.899e-05,2]
[348721652,1736751041598,-505.27036916,9.899e-05,2]
[348721654,1736751041611,-500.0,9.899e-05,2]
[348721656,1736751041621,-503.76651953,9.899e-05,2]
[348721658,1736751041631,-500.0,9.899e-05,2]
[348721660,1736751041641,-500.0,9.899e-05,2]
[348721662,1736751041652,-560.63,9.899e-05,2]
[348721665,1736751041663,-500.0,9.899e-05,2]
[348721667,1736751041675,-500.0,9.899e-05,2]
[348721669,1736751041688,-500.0,9.899e-05,2]
[348721671,1736751041699,-500.0,9.899e-05,2]
[348721673,1736751041711,-500.0,9.899e-05,2]
[348721676,1736751041727,-500.0,9.899e-05,2]
[348721678,1736751041738,-500.0,9.899e-05,2]
[348721680,1736751041748,-500.0,9.899e-05,2]
[348721682,1736751041759,-500.0,9.899e-05,2]
[348721684,1736751041771,-835.780081,9.899e-05,2]
[348721686,1736751041782,-500.0,9.899e-05,2]
[348721688,1736751041792,-503.35292211,9.899e-05,2]
[348721691,1736751041804,-500.0,9.899e-05,2]
[348721693,1736751041817,-500.0,9.899e-05,2]
[348721695,1736751041828,-500.0,9.899e-05,2]
[348721697,1736751041839,-500.0,9.899e-05,2]
[348721700,1736751041852,-502.87862916,9.899e-05,2]
[348721702,1736751041863,-503.16500725,9.899e-05,2]
[348721704,1736751041874,-500.0,9.899e-05,2]
[348721706,1736751041884,-500.0,9.899e-05,2]
[348721708,1736751041896,-500.0,9.899e-05,2]
[348721711,1736751041907,-460.33591213,9.899e-05,2]
[348721713,1736751041918,-157.489315,9.899e-05,2]
[348721715,1736751041934,-500.0,9.899e-05,2]
[348721718,1736751041944,-500.0,9.899e-05,2]
[348721720,1736751041955,-500.0,9.899e-05,2]
[348721722,1736751041966,-500.0,9.899e-05,2]
[348721724,1736751041977,-500.0,9.899e-05,2]
[348721726,1736751041988,-500.0,9.899e-05,2]
[348721729,1736751041998,-500.0,9.899e-05,2]
[348721731,1736751042009,-402.60049348,9.899e-05,2]
[348721733,1736751042024,-500.0,9.899e-05,2]
[348721735,1736751042035,-158.585778,9.899e-05,2]
[348721737,1736751042047,-500.0,9.899e-05,2]
[348721739,1736751042063,-500.0,9.899e-05,2]
[348721742,1736751042074,-500.0,9.899e-05,2]
[348721744,1736751042085,-500.0,9.899e-05,2]
[348721746,1736751042096,-500.0,9.899e-05,2]
[348721748,1736751042107,-500.0,9.899e-05,2]
[348721750,1736751042117,-500.0,9.899e-05,2]
[348721753,1736751042128,-500.0,9.899e-05,2]
[348721755,1736751042139,-500.0,9.899e-05,2]
[348721757,1736751042150,-506.16170191,9.899e-05,2]
[348721759,1736751042161,-500.0,9.899e-05,2]
[348721761,1736751042171,-500.0,9.899e-05,2]
[348721763,1736751042182,-340.86116379,9.899e-05,2]
[348721765,1736751042193,-503.99420942,9.899e-05,2]
[348721768,1736751042206,-500.0,9.899e-05,2]
[348721770,1736751042216,-500.0,9.899e-05,2]
[348721772,1736751042227,-500.0,9.899e-05,2]
[348721774,1736751042237,-500.0,9.899e-05,2]
[348721776,1736751042248,-500.0,9.899e-05,2]
[348721778,1736751042259,-500.0,9.899e-05,2]
[348721781,1736751042272,-500.0,9.899e-05,2]
[348721783,1736751042283,-874.48179,9.899e-05,2]
[348721785,1736751042294,-500.0,9.899e-05,2]
[348721787,1736751042304,-501.84666235,9.899e-05,2]
[348721789,1736751042315,-500.0,9.899e-05,2]
[348721792,1736751042326,-500.0,9.899e-05,2]
[348721794,1736751042337,-500.0,9.899e-05,2]
[348721796,1736751042348,-500.0,9.899e-05,2]
[348721798,1736751042360,-500.0,9.899e-05,2]
[348721800,1736751042371,-500.0,9.899e-05,2]
[348721803,1736751042382,-504.36471595,9.899e-05,2]
[348721805,1736751042394,-500.0,9.899e-05,2]
[348721807,1736751042409,-502.61847048,9.899e-05,2]
[348721809,1736751042420,-500.0,9.899e-05,2]
[348721811,1736751042430,-500.0,9.899e-05,2]
[348721813,1736751042442,-500.0,9.899e-05,2]
[348721815,1736751042453,-500.0,9.899e-05,2]
[348721818,1736751042464,-533.03277058,9.899e-05,2]
[348721820,1736751042476,-500.0,9.899e-05,2]
[348721822,1736751042487,-500.0,9.899e-05,2]
[348721824,1736751042498,-500.0,9.899e-05,2]
[348721827,1736751042510,-644.94218952,9.899e-05,2]
[348721829,1736751042522,-500.0,9.899e-05,2]
[348721831,1736751042532,-500.0,9.899e-05,2]
[348721833,1736751042543,-501.59712416,9.899e-05,2]
[348721835,1736751042554,-500.0,9.899e-05,2]
[348721837,1736751042565,-500.0,9.899e-05,2]
[348721840,1736751042576,-500.0,9.899e-05,2]
[348721842,1736751042587,-502.27052209,9.899e-05,2]
[348721844,1736751042597,-500.0,9.899e-05,2]
[348721847,1736751042608,-500.0,9.899e-05,2]
[348721850,1736751042619,-500.0,9.899e-05,2]
[348721852,1736751042630,-500.0,9.899e-05,2]
[348721856,1736751042640,-508.59971688,9.899e-05,2]
[348721859,1736751042651,-500.0,9.899e-05,2]
[348721862,1736751042662,-500.0,9.899e-05,2]
[348721864,1736751042672,-500.0,9.899e-05,2]
[348721866,1736751042683,-500.0,9.899e-05,2]
[348721869,1736751042694,-500.0,9.899e-05,2]
[348721872,1736751042705,-500.0,9.899e-05,2]
[348721874,1736751042715,-500.0,9.899e-05,2]
[348721876,1736751042725,-500.0,9.899e-05,2]
[348721879,1736751042736,-544.33,9.899e-05,2]
[348721881,1736751042746,-500.0,9.899e-05,2]
[348721883,1736751042757,-500.0,9.899e-05,2]
[348721886,1736751042769,-500.0,9.899e-05,2]
[348721888,1736751042779,-500.0,9.899e-05,2]
[348721890,1736751042790,-536.95,9.899e-05,2]
[348721892,1736751042801,-507.11041122,9.899e-05,2]
[348721894,1736751042811,-500.0,9.899e-05,2]
[348721896,1736751042822,-500.0,9.899e-05,2]
[348721899,1736751042833,-500.0,9.899e-05,2]
[348721902,1736751042843,-500.0,9.899e-05,2]
[348721904,1736751042854,-500.0,9.899e-05,2]
[348721906,1736751042865,-500.0,9.899e-05,2]
[348721909,1736751042875,-617.04,9.899e-05,2]
[348721912,1736751042886,-500.0,9.899e-05,2]
[348721916,1736751042896,-500.0,9.899e-05,2]
[348721918,1736751042907,-500.0,9.899e-05,2]
[348721921,1736751042918,-500.0,9.899e-05,2]
[348721923,1736751042929,-500.0,9.899e-05,2]
[348721925,1736751042939,-500.0,9.899e-05,2]
[348721927,1736751042950,-500.0,9.899e-05,2]
[348721930,1736751042960,-500.0,9.899e-05,2]
[348721932,1736751042970,-500.0,9.899e-05,2]
[348721934,1736751042981,-501.74123412,9.899e-05,2]
[348721936,1736751042991,-500.0,9.899e-05,2]
[348721938,1736751043002,-500.0,9.899e-05,2]
[348721940,1736751043012,-600.0,9.899e-05,2]
[348721942,1736751043025,-500.0,9.899e-05,2]
[348721945,1736751043035,-500.0,9.899e-05,2]
[348721947,1736751043047,-500.0,9.899e-05,2]
[348721949,1736751043057,-500.0,9.899e-05,2]
[348721951,1736751043068,-500.0,9.899e-05,2]
[348721953,1736751043078,-500.0,9.899e-05,2]
[348721956,1736751043089,-500.0,9.899e-05,2]
[348721958,1736751043100,-500.0,9.899e-05,2]
[348721960,1736751043111,-500.0,9.899e-05,2]
[348721962,1736751043121,-500.41191656,9.899e-05,2]
[348721964,1736751043133,-500.0,9.899e-05,2]
[348721966,1736751043143,-500.0,9.899e-05,2]
[348721969,1736751043154,-573.4,9.899e-05,2]
[348721970,1736751043165,-504.7369464,9.899e-05,2]
[348721971,1736751043175,-500.0,9.899e-05,2]
[348721972,1736751043185,-500.0,9.899e-05,2]
[348721973,1736751043196,-500.0,9.899e-05,2]
[348721974,1736751043206,-500.0,9.899e-05,2]
[348721975,1736751043216,-503.99151265,9.899e-05,2]
[348721976,1736751043227,-500.0,9.899e-05,2]
[348721977,1736751043238,-500.0,9.899e-05,2]
[348721978,1736751043248,-500.0,9.899e-05,2]
[348721980,1736751043259,-1945.28,9.899e-05,2]
[348721982,1736751043271,-500.0,9.899e-05,2]
[348721983,1736751043282,-508.17,9.899e-05,2]
[348721984,1736751043292,-500.0,9.899e-05,2]
[348721985,1736751043302,-500.0,9.899e-05,2]
[348721986,1736751043312,-500.0,9.899e-05,2]
[348721987,1736751043322,-500.0,9.899e-05,2]
[348721988,1736751043332,-500.0,9.899e-05,2]
[348721989,1736751043342,-500.0,9.899e-05,2]
[348721990,1736751043353,-506.90400996,9.899e-05,2]
[348721992,1736751043364,-500.0,9.899e-05,2]
[348721994,1736751043374,-500.0,9.899e-05,2]
[348721997,1736751043386,-500.0,9.899e-05,2]
[348721999,1736751043400,-500.0,9.899e-05,2]
[348722001,1736751043411,-500.0,9.899e-05,2]
[348722003,1736751043421,-500.0,9.899e-05,2]
[348722005,1736751043433,-500.0,9.899e-05,2]
[348722007,1736751043443,-500.0,9.899e-05,2]
[348722009,1736751043454,-268.15224933,9.899e-05,2]
[348722011,1736751043465,-500.0,9.899e-05,2]
[348722064,1736751043754,-605.11,9.899e-05,2]
[348722067,1736751043780,-270.1145945,9.899e-05,2]
[348722070,1736751043797,-500.0,9.899e-05,2]
[348722072,1736751043807,-500.0,9.899e-05,2]
[348722074,1736751043816,-500.0,9.899e-05,2]
[348722076,1736751043825,-500.0,9.899e-05,2]
[348722078,1736751043834,-502.04811459,9.899e-05,2]
[348722080,1736751043843,-500.0,9.899e-05,2]
[348722082,1736751043852,-599.83305759,9.899e-05,2]
[348722084,1736751043862,-500.0,9.899e-05,2]
[348722086,1736751043871,-500.0,9.899e-05,2]
[348722087,1736751043880,-500.0,9.899e-05,2]
[348722089,1736751043889,-500.0,9.899e-05,2]
[348722091,1736751043899,-500.0,9.899e-05,2]
[348722093,1736751043908,-569.66,9.899e-05,2]
[348722095,1736751043918,-500.0,9.899e-05,2]
[348722097,1736751043927,-500.0,9.899e-05,2]
[348722099,1736751043936,-500.0,9.899e-05,2]
[348722101,1736751043946,-500.0,9.899e-05,2]
[348722103,1736751043955,-500.0,9.899e-05,2]
[348722105,1736751043964,-500.0,9.899e-05,2]
[348722107,1736751043973,-156.8882859,9.899e-05,2]
[348722109,1736751043982,-500.0,9.899e-05,2]
[348722111,1736751043991,-500.0,9.899e-05,2]
[348722113,1736751044001,-500.0,9.899e-05,2]
[348722115,1736751044010,-500.0,9.899e-05,2]
[348722117,1736751044021,-500.0,9.899e-05,2]
[348722119,1736751044030,-161.117506,9.899e-05,2]
[348722121,1736751044039,-459.9495385,9.899e-05,2]
[348722123,1736751044048,-500.0,9.899e-05,2]
[348722125,1736751044057,-500.0,9.899e-05,2]
[348722127,1736751044067,-500.0,9.899e-05,2]
[348722129,1736751044076,-733.34,9.899e-05,2]
[348722131,1736751044085,-500.0,9.899e-05,2]
[348722133,1736751044095,-500.0,9.899e-05,2]
[348722135,1736751044104,-500.0,9.899e-05,2]
[348722137,1736751044114,-500.0,9.899e-05,2]
[348722139,1736751044124,-500.0,9.899e-05,2]
[348722141,1736751044133,-500.0,9.899e-05,2]
[348722143,1736751044143,-501.54918738,9.899e-05,2]
[348722145,1736751044152,-500.0,9.899e-05,2]
[348722147,1736751044162,-501.78187637,9.899e-05,2]
[348722149,1736751044171,-514.29693431,9.899e-05,2]
[348722151,1736751044181,-500.0,9.899e-05,2]
[348722152,1736751044190,-500.77989436,9.899e-05,2]
[348722153,1736751044199,-500.0,9.899e-05,2]
[348722154,1736751044208,-502.36821059,9.899e-05,2]
[348722155,1736751044217,-643.92,9.899e-05,2]
[348722156,1736751044227,-500.74283881,9.899e-05,2]
[348722157,1736751044236,-500.0,9.899e-05,2]
[348722158,1736751044245,-223.95892,9.899e-05,2]
[348722159,1736751044254,-500.38643915,9.899e-05,2]
[348722160,1736751044263,-501.71023786,9.899e-05,2]
[348722161,1736751044275,-500.0,9.899e-05,2]
[348722162,1736751044285,-500.0,9.899e-05,2]
[348722163,1736751044294,-500.0,9.899e-05,2]
[348722164,1736751044303,-599.61,9.899e-05,2]
[348722165,1736751044312,-503.83482699,9.899e-05,2]
[348722166,1736751044321,-500.0,9.899e-05,2]
[348722167,1736751044330,-2672.19,9.899e-05,2]
[348722168,1736751044339,-503.32902329,9.899e-05,2]
[348722169,1736751044349,-515.12608235,9.899e-05,2]
[348722170,1736751044358,-502.14465985,9.899e-05,2]
[348722171,1736751044367,-501.40487414,9.899e-05,2]
[348722173,1736751044376,-500.0,9.899e-05,2]
[348722175,1736751044387,-500.0,9.899e-05,2]
[348722177,1736751044397,-500.0,9.899e-05,2]
[348722178,1736751044408,-500.0,9.899e-05,2]
[348722180,1736751044417,-545.54950891,9.899e-05,2]
[348722182,1736751044426,-500.0,9.899e-05,2]
[348722184,1736751044436,-655.44,9.899e-05,2]
[348722186,1736751044445,-501.37644706,9.899e-05,2]
[348722187,1736751044454,-502.78266139,9.899e-05,2]
[348722188,1736751044463,-500.0,9.899e-05,2]
[348722189,1736751044473,-502.47212732,9.899e-05,2]
[348722190,1736751044483,-500.0,9.899e-05,2]
[348722191,1736751044492,-500.0,9.899e-05,2]
[348722192,1736751044502,-500.0,9.899e-05,2]
[348722193,1736751044511,-501.01908909,9.899e-05,2]
[348722194,1736751044523,-500.72394199,9.899e-05,2]
[348722195,1736751044532,-500.0,9.899e-05,2]
[348722196,1736751044541,-500.0,9.899e-05,2]
[348722197,1736751044551,-501.48100391,9.899e-05,2]
[348722198,1736751044560,-2142.44,9.899e-05,2]
[348722199,1736751044569,-500.0,9.899e-05,2]
[348722200,1736751044578,-505.04882395,9.899e-05,2]
[348722201,1736751044587,-500.0,9.899e-05,2]
[348722202,1736751044596,-500.0,9.899e-05,2]
[348722203,1736751044606,-502.0983077,9.899e-05,2]
[348722204,1736751044615,-500.0,9.899e-05,2]
[348722205,1736751044624,-503.65139715,9.899e-05,2]
[348722206,1736751044633,-500.0,9.899e-05,2]
[348722207,1736751044642,-500.0,9.899e-05,2]
[348722208,1736751044652,-500.0,9.899e-05,2]
[348722209,1736751044661,-500.0,9.899e-05,2]
[348722210,1736751044671,-502.3532472,9.899e-05,2]
[348722211,1736751044681,-500.0,9.899e-05,2]
[348722212,1736751044691,-500.0,9.899e-05,2]
[348722213,1736751044700,-500.0,9.899e-05,2]
[348722214,1736751044709,-501.31251873,9.899e-05,2]
[348722215,1736751044719,-505.51227427,9.899e-05,2]
[348722216,1736751044728,-500.0,9.899e-05,2]
[348722217,1736751044737,-500.0,9.899e-05,2]
[348722218,1736751044747,-504.00165117,9.899e-05,2]
[348722219,1736751044756,-506.8748005,9.899e-05,2]
[348722220,1736751044765,-500.0,9.899e-05,2]
[348722221,1736751044777,-1903.84,9.899e-05,2]
[348722222,1736751044786,-328.71817101,9.899e-05,2]
[348722223,1736751044795,-494.01980625,9.899e-05,2]
[348722224,1736751044804,-500.0,9.899e-05,2]
[348722225,1736751044813,-503.55055,9.899e-05,2]
[348722226,1736751044822,-503.74909667,9.899e-05,2]
[348722227,1736751044831,-500.0,9.899e-05,2]
[348722228,1736751044841,-500.0,9.899e-05,2]
[348722229,1736751044850,-500.0,9.899e-05,2]
[348722230,1736751044859,-509.51366196,9.899e-05,2]
[348722231,1736751044868,-797.69,9.899e-05,2]
[348722232,1736751044877,-505.47471382,9.899e-05,2]
[348722233,1736751044886,-500.0,9.899e-05,2]
[348722234,1736751044896,-1926.34,9.899e-05,2]
[348722235,1736751044905,-500.0,9.899e-05,2]
[348722236,1736751044915,-510.37372081,9.899e-05,2]
[348722237,1736751044925,-500.0,9.899e-05,2]
[348722238,1736751044935,-500.0,9.899e-05,2]
[348722239,1736751044944,-966.51,9.899e-05,2]
[348722240,1736751044953,-500.0,9.899e-05,2]
[348722241,1736751044962,-500.0,9.899e-05,2]
[348722242,1736751044971,-500.0,9.899e-05,2]
[348722243,1736751044980,-500.0,9.899e-05,2]
[348722244,1736751044989,-500.0,9.899e-05,2]
[348722245,1736751044999,-500.77836531,9.899e-05,2]
[348722246,1736751045008,-875.1,9.899e-05,2]
[348722247,1736751045020,-500.0,9.899e-05,2]
[348722248,1736751045029,-500.0,9.899e-05,2]
[348722249,1736751045038,-500.0,9.899e-05,2]
[348722250,1736751045047,-567.79356086,9.899e-05,2]
[348722251,1736751045056,-500.0,9.899e-05,2]
[348722252,1736751045065,-500.0,9.899e-05,2]
[348722253,1736751045075,-500.0,9.899e-05,2]
[348722254,1736751045084,-500.0,9.899e-05,2]
[348722255,1736751045093,-627.77,9.899e-05,2]
[348722256,1736751045102,-500.0,9.899e-05,2]
[348722257,1736751045110,-500.0,9.899e-05,2]
[348722258,1736751045119,-500.0,9.899e-05,2]
[348722259,1736751045129,-500.51729491,9.899e-05,2]
[348722260,1736751045138,-699.25,9.899e-05,2]
[348722261,1736751045147,-500.0,9.899e-05,2]
[348722262,1736751045157,-502.177867,9.899e-05,2]
[348722263,1736751045166,-500.0,9.899e-05,2]
[348722264,1736751045175,-500.0,9.899e-05,2]
[348722265,1736751045184,-635.6876136,9.899e-05,2]
[348722266,1736751045193,-500.0,9.899e-05,2]
[348722267,1736751045202,-502.77021046,9.899e-05,2]
[348722268,1736751045211,-500.0,9.899e-05,2]
[348722269,1736751045220,-500.0,9.899e-05,2]
[348722270,1736751045229,-500.0,9.899e-05,2]
[348722271,1736751045238,-505.27246082,9.899e-05,2]
[348722272,1736751045247,-500.0,9.899e-05,2]
[348722273,1736751045256,-500.0,9.899e-05,2]
[348722274,1736751045265,-512.62874647,9.899e-05,2]
[348722275,1736751045276,-500.0,9.899e-05,2]
[348722276,1736751045285,-506.68254641,9.899e-05,2]
[348722277,1736751045295,-500.0,9.899e-05,2]
[348722278,1736751045303,-500.0,9.899e-05,2]
[348722279,1736751045312,-317.93860207,9.899e-05,2]
[348722280,1736751045322,-58060.8952,9.9e-05,2]
[348722281,1736751045331,-500.0,9.9e-05,2]
[348722282,1736751045340,-1650.9838,9.9e-05,2]
[348722283,1736751045349,-4149.1537,9.9e-05,2]
[348722284,1736751045359,-5000.0,9.9e-05,2]
[348722285,1736751045368,-163.14950809,9.973e-05,2]
[348722286,1736751045377,-500.0,9.973e-05,2]
[348722287,1736751045386,-500.0,9.973e-05,2]
[348722288,1736751045395,-260.04959466,9.973e-05,2]
[348722289,1736751045407,-500.0,9.973e-05,2]
[348722290,1736751045416,-261.91024239,9.973e-05,2]
[348722291,1736751045424,-565.20126687,9.973e-05,2]
[348722292,1736751045435,-2277.8002481,9.975e-05,2]
[348722293,1736751045444,-2277.8002481,9.977e-05,2]
[348722294,1736751045452,-2277.8002481,9.978e-05,2]
[348722295,1736751045462,-2277.8002481,9.991e-05,2]
[348722296,1736751045473,-2277.8002481,9.994e-05,2]
[348722297,1736751045482,-37685.59426497,9.998e-05,2]
[348722298,1736751045492,-500.0,9.999e-05,2]
[348722299,1736751045501,-502.63534614,9.999e-05,2]
[348722300,1736751045512,-500.0,9.999e-05,2]
[348722301,1736751045524,-500.0,9.999e-05,2]
[348722302,1736751045533,-500.0,9.999e-05,2]
[348722303,1736751045542,-500.0,9.999e-05,2]
[348722304,1736751045551,-500.0,9.999e-05,2]
[348722305,1736751045561,-500.0,9.999e-05,2]
[348722306,1736751045570,-405.756,9.999e-05,2]
[348722307,1736751045580,-500.0,9.999e-05,2]
[348722309,1736751045589,-500.0,9.999e-05,2]
[348722310,1736751045598,-500.0,9.999e-05,2]
[348722312,1736751045607,-500.0,9.999e-05,2]
[348722314,1736751045616,-500.0,9.999e-05,2]
[348722316,1736751045625,-2277.8002481,0.0001,2]
[348722317,1736751045634,-15959958.82697755,0.0001,2]
[348722325,1736751045910,-27613.05305122,0.0001,2]
[348722326,1736751045922,-27999.6804609,0.0001,2]
[348722327,1736751045933,-11834.46067078,0.0001,2]
[348722328,1736751045944,-1540.67279682,0.0001,2]
[348722329,1736751045955,-277.31712182,0.0001,2]
[348722330,1736751045967,-3115.65402281,0.0001,2]
[348722331,1736751045978,-3470.08835795,0.0001,2]
[348722332,1736751045989,-2599.10831115,0.0001,2]
[348722333,1736751046018,-1142.11724043,0.0001,2]
[348722334,1736751046030,-140549.4000264,0.0001,2]
[348722339,1736751046312,-2708.91186172,0.0001,2]
[348722341,1736751046325,-1088.74534188,0.0001,2]
[348722343,1736751046336,-11734.11570097,0.0001,2]
[348722412,1736751046981,-314.4832,9.898e-05,2]
[348722415,1736751046996,-185.5168,9.898e-05,2]
[348722417,1736751047006,-500.0,9.898e-05,2]
[348722419,1736751047015,-597235.9943213,0.0001,2]
[348722420,1736751047031,-340.71107695,0.0001,2]
[348722421,1736751047043,-187925.72140817,0.0001,2]
[348722422,1736751047054,-4221.1200169,0.0001,2]
[348722423,1736751047065,-908.02950024,0.0001,2]
[348722424,1736751047076,-9313.86758127,0.0001,2]
[348722425,1736751047087,-98482.0,0.0001,2]
[348722426,1736751047101,-18782.00000001,0.0001,2]
[348722429,1736751047118,-441.41778176,0.0001,2]
[348722432,1736751047136,-2577.3096841,0.0001,2]
[348722442,1736751047420,-504.97123509,9.898e-05,2]
[348722443,1736751047430,-500.0,9.898e-05,2]
[348722444,1736751047440,-312367.79391102,0.0001,2]
[348722445,1736751047452,-353438.12691627,0.0001,2]
[348722446,1736751047463,-3276.72654179,0.0001,2]
[348722447,1736751047475,-4930.67296,0.0001,2]
[348722448,1736751047490,-616.87499802,0.0001,2]
[348722449,1736751048922,-215.233081,9.898e-05,2]
[348722450,1736751048931,-1448.158535,0.0001,2]
[348722451,1736751048943,-4811.91887771,0.0001,2]
[348722452,1736751048955,-19293.84027,0.0001,2]
[348722453,1736751048966,-5377.46602581,0.0001,2]
[348722454,1736751049079,-270.21361349,0.0001,2]
[348722455,1736751049091,-1186.7879686,0.0001,2]
[348722456,1736751049103,-674.82,0.0001,2]
[348722457,1736751049115,-565.608,0.0001,2]
[348722458,1736751049127,-37564.0,0.0001,2]
[348722459,1736751125507,1344.89,8.219e-05,2]
[348722461,1736751750647,150.0,8.388e-05,2]
[348722463,1736751810208,150.0,8.35e-05,2]
[348722464,1736751854104,166.18,6.813e-05,2]
[348722465,1736751854593,166.18,7.665e-05,2]
[348722466,1736751854649,166.18,8.517e-05,2]
[348722467,1736751871350,-250.0,8.552e-05,2]
[348722468,1736751871376,-1000.0,8.593e-05,2]
[348722469,1736751871402,-312.58,8.617e-05,2]
[348722470,1736751871430,-150.0,8.654e-05,2]
[348722471,1736751871457,-12966.63580916,8.673e-05,2]
[348722472,1736751871483,-203.46,8.673e-05,2]
[348722473,1736751871513,-1117.32419084,8.726e-05,2]
[348722474,1736751901701,1000.0,9.9e-05,10]
[348722475,1736751919522,1000.0,0.00019,120]
[348722476,1736751933407,-250.0,8.626e-05,2]
[348722477,1736751933437,-250.0,8.726e-05,2]
[348722478,1736751957436,1500.0,8.504e-05,2]
[348722479,1736751967886,230.39,8.52e-05,2]
[348722480,1736752005474,1320.78,8.219e-05,2]
[348722481,1736752021486,250.0,8.516e-05,2]
[348722482,1736752054315,-189.71,8.56e-05,2]
[348722483,1736752054342,-1735.94,8.574e-05,2]
[348722484,1736752054368,-74.35,8.582e-05,2]
[348722485,1736752070490,-115.36,8.582e-05,2]
[348722486,1736752070517,-189.71,8.603e-05,2]
[348722487,1736752070545,-70.70580916,8.726e-05,2]
[348722488,1736752070570,-124.22419084,8.751e-05,2]
[348722491,1736752156320,-49.48580916,8.751e-05,2]
[348722492,1736752156341,-515.3,8.796e-05,2]
[348722493,1736752156366,-136.1155029,8.796e-05,2]
[348722494,1736752201071,-470.56,8.626e-05,2]
[348722495,1736752201098,-136.00707292,8.796e-05,2]
[348722496,1736752201125,-200.0,8.841e-05,2]
[348722497,1736752201151,-150.99,8.841e-05,2]
[348722498,1736752201184,-755.22,8.841e-05,2]
[348722499,1736752201209,-169.37,8.861e-05,2]
[348722500,1736752201235,-117.85292708,9.005e-05,2]
[348722501,1736752203881,203.3872992,8.219e-05,30]
[348722502,1736752215631,-200.0,8.719e-05,2]
[348722503,1736752215658,-32.14707292,9.005e-05,2]
[348722504,1736752215683,-170.4,9.033e-05,2]
[348722505,1736752215707,-1653.75,9.033e-05,2]
[348722506,1736752215732,-430.96460261,9.07e-05,2]
[348722507,1736752215759,-150.0,9.239e-05,2]
[348722508,1736752215787,-150.0,9.29e-05,2]
[348722509,1736752215811,-837.98518321,9.323e-05,2]
[348722510,1736752215836,-166.18,9.368e-05,2]
[348722511,1736752215860,-844.62,9.425e-05,2]
[348722512,1736752215886,-400.0,9.5e-05,3]
[348722513,1736752215912,-963.95314126,9.508e-05,2]
[348722514,1736752220148,-150.0,0.0001925,2]
[348722523,1736752232124,-422.99678645,9.508e-05,2]
[348722524,1736752232451,-293.39280875,9.508e-05,2]
[348722525,1736752232464,-2113.50691296,9.508e-05,2]
[348722526,1736752232476,-936.9,9.508e-05,2]
[348722527,1736752232498,-1005.00961891,9.508e-05,2]
[348722528,1736752232540,-1228.69348519,9.508e-05,2]
[348722529,1736752232563,-3132.41345549,9.508e-05,2]
[348722530,1736752232574,-1712.85192006,9.508e-05,2]
[348722531,1736752232588,-598.0288,9.508e-05,2]
[348722596,1736752237905,-539.34332047,9.508e-05,2]
[348722597,1736752237943,-1876.90975046,9.508e-05,2]
[348722598,1736752237952,-150.0,9.511e-05,2]
[348722599,1736752237961,-150.0,9.53e-05,2]
[348722600,1736752237971,-150.0,9.539e-05,2]
[348722601,1736752237981,-150.0,9.552e-05,2]
[348722602,1736752237990,-900.0,9.6e-05,3]
[348722603,1736752238000,-150.0,9.636e-05,2]
[348722604,1736752238009,-1000.0,9.668e-05,2]
[348722605,1736752238019,-150.0,9.686e-05,2]
[348722606,1736752238032,-150.0,9.686e-05,2]
[348722607,1736752238041,-311.6239,9.699e-05,2]
[348722608,1736752238051,-1996.6982,9.699e-05,2]
[348722609,1736752238060,-640.215,9.699e-05,2]
[348722610,1736752238072,-1377.09264102,9.699e-05,2]
[348722611,1736752238086,-2488.37415898,9.699e-05,2]
[348722612,1736752238099,-1400.0,9.7e-05,3]
[348722613,1736752238111,-500.0,9.753e-05,2]
[348722614,1736752238121,-1000.0,9.797e-05,2]